fUSD/lending_fUSD_20251109
["ID","MTS","AMOUNT","RATE_DAILY","PERIOD"]
[393466500,1762691319936,-2445.76082449,0.00015,3]
[393466501,1762691319960,-5108.48835102,0.00015,3]
[393466502,1762691321275,999.90961404,0.0002,120]
[393466526,1762691432142,-247.44,0.00016129,2]
[393466527,1762691432153,-250.0,0.00016238,2]
[393466528,1762691432163,-1725.16456899,0.00016322,2]
[393466529,1762691432172,-250.0,0.00016371,2]
[393466530,1762691432184,-921.0,0.00016499,2]
[393466531,1762691432195,-1725.16456899,0.00016499,2]
[393466532,1762691432204,-1200.0,0.00016499,2]
[393466533,1762691432213,-300.0,0.00016499,2]
[393466534,1762691432223,-15238.06643167,0.000165,2]
[393466535,1762691432232,-356.68796446,0.000166,2]
[393466536,1762691432242,-2499.6,0.00016636,2]
[393466537,1762691432251,-247.44,0.00016653,2]
[393466538,1762691432261,-1725.16456899,0.00016734,2]
[393466539,1762691432270,-357.1,0.00016899,2]
[393466540,1762691432279,-250.0,0.00017,2]
[393466541,1762691432288,-773.40284833,0.00017,2]
[393466542,1762691432298,-160.0,0.00017,2]
[393466543,1762691432307,-426.65530248,0.00017052,5]
[393466544,1762691432317,-247.44,0.00017177,2]
[393466545,1762691432327,-1725.16456899,0.00017248,2]
[393466546,1762691432338,-400.46646103,0.000175,2]
[393466547,1762691432347,-1725.16456899,0.00017517,2]
[393466548,1762691432357,-177.73913577,0.00017601,2]
[393466549,1762691432367,-500.0,0.00017601,2]
[393466550,1762691432376,-500.0,0.00017601,2]
[393466551,1762691432386,-154.88640384,0.00017601,2]
[393466552,1762691432397,-1725.16456899,0.00017602,2]
[393466553,1762691432409,-247.44,0.00017701,2]
[393466554,1762691432419,-2341.85,0.00017715,2]
[393466556,1762691432430,-1000.0,0.00017727,2]
[393466557,1762691432440,-550.0,0.00017727,2]
[393466559,1762691432450,-9999.99,0.00017728,2]
[393466560,1762691432459,-150.99,0.00017728,2]
[393466561,1762691432469,-225.08,0.00017728,2]
[393466562,1762691432478,-250.0,0.00017742,2]
[393466563,1762691432488,-300.0,0.00017742,2]
[393466564,1762691432497,-300.0,0.00017742,2]
[393466565,1762691432507,-300.0,0.00017742,2]
[393466566,1762691432516,-300.0,0.00017742,2]
[393466567,1762691432526,-500.0,0.00017832,2]
[393466568,1762691432534,-1725.16456899,0.00017838,2]
[393466570,1762691432543,-155.879154,0.000179,2]
[393466572,1762691432552,-24333.34808742,0.000179,2]
[393466574,1762691432561,-16434.65580067,0.000179,2]
[393466576,1762691432583,-19794.56226708,0.000179,2]
[393466577,1762691432595,-5000.0,0.000179,2]
[393466578,1762691432604,-312.87876111,0.000179,2]
[393466579,1762691432613,-157.0602999,0.000179,2]
[393466580,1762691432623,-2051.8838149,0.000179,2]
[393466581,1762691432633,-1055.29316502,0.000179,2]
[393466582,1762691432642,-349.62646308,0.000179,2]
[393466583,1762691432652,-1422.0,0.0001791,2]
[393466584,1762691432662,-500.0,0.00017973,2]
[393466585,1762691432671,-500.0,0.00017973,2]
[393466586,1762691432681,-500.0,0.00017973,2]
[393466587,1762691432691,-1422.0,0.00017985,2]
[393466588,1762691432700,-151.0,0.00017989,2]
[393466589,1762691432710,-151.0,0.00017989,2]
[393466590,1762691432719,-151.0,0.00017989,2]
[393466591,1762691432729,-151.0,0.00017989,2]
[393466592,1762691432738,-151.0,0.00017989,2]
[393466593,1762691432748,-151.0,0.00017989,2]
[393466594,1762691432758,-151.0,0.00017989,2]
[393466595,1762691432768,-151.0,0.00017989,2]
[393466596,1762691432777,-151.0,0.00017989,2]
[393466597,1762691432787,-261.91721965,0.00017989,2]
[393466598,1762691432796,-163.36,0.0001799,2]
[393466599,1762691432806,-8746.41712849,0.00017999,2]
[393466600,1762691432849,-6661.82781741,0.00017999,2]
[393466601,1762691432859,-500.0,0.00017999,2]
[393466602,1762691432869,-500.0,0.00017999,2]
[393466603,1762691432878,-498.13938589,0.00017999,2]
[393466604,1762691432888,-638.36120107,0.00017999,2]
[393466605,1762691432898,-897.16032,0.00018,2]
[393466606,1762691432908,-445.043955,0.00018,2]
[393466607,1762691432920,-252.06732066,0.00018,2]
[393466608,1762691432932,-754.78810055,0.00018,2]
[393466609,1762691432943,-27.01863179,0.00018,2]
[393466610,1762691432953,-146422.92764729,0.00018,2]
[393466621,1762691437999,-411.404886,0.00018,2]
[393466622,1762691438042,-500.78466187,0.00018,2]
[393466623,1762691438055,-10500.0,0.00018,2]
[393466624,1762691438100,-5377212.66068888,0.00018,2]
[393466625,1762691438264,-1856.434,0.00018,2]
[393466679,1762691440002,-23011.09850284,0.00018,2]
[393466680,1762691440015,-6575763.37146887,0.00018,2]
[393466681,1762691440060,-11698.71563813,0.00018,2]
[393466682,1762691440072,-3239.64536153,0.00018,2]
[393466683,1762691440084,-6577.8,0.00018,2]
[393466684,1762691440095,-327.84001672,0.00018,2]
[393466685,1762691440132,-1950.0,0.00018,2]
[393466686,1762691440145,-575.34554962,0.00018,2]
[393466691,1762691440712,-6121.79229815,0.00018,2]
[393466692,1762691440724,-745.01559428,0.00018,2]
[393466693,1762691440737,-5134.749,0.00018,2]
[393466694,1762691440796,-850.48796728,0.00018,2]
[393466695,1762691440920,-1799.27573667,0.00018,2]
[393466696,1762691440932,-1023.1436554,0.00018,2]
[393466697,1762691440947,-887.95434531,0.00018,2]
[393466711,1762691443128,-6657.07241363,0.00018,2]
[393466712,1762691443139,-4128.19429225,0.00018,2]
[393466713,1762691443186,-16337.42712221,0.00018,2]
[393466714,1762691443378,-329420.88902228,0.00018,2]
[393466715,1762691443387,-844.76,0.00018,7]
[393466716,1762691443397,-884.11616238,0.00018,2]
[393466717,1762691443407,-140213.47817788,0.00018,2]
[393466719,1762691443416,-1179.50015307,0.00018,2]
[393466721,1762691443426,-1422.0,0.00018015,2]
[393466723,1762691443435,-420.0,0.0001803,2]
[393466725,1762691443446,-168.0,0.00018043,2]
[393466727,1762691443455,-168.0,0.00018049,2]
[393466729,1762691443465,-1422.0,0.00018055,2]
[393466731,1762691443474,-1422.0,0.000181,2]
[393466733,1762691443484,-1763.17263167,0.000181,2]
[393466735,1762691443493,-1422.0,0.00018116,2]
[393466737,1762691443502,-1680.0,0.0001812,2]
[393466739,1762691443511,-1422.0,0.0001814,2]
[393466741,1762691443520,-1422.0,0.00018141,2]
[393466743,1762691443529,-1725.16456899,0.00018143,2]
[393466745,1762691443538,-157.0602999,0.0001815,2]
[393466747,1762691443547,-247.44,0.00018225,2]
[393466748,1762691443556,-1422.0,0.00018273,2]
[393466749,1762691443565,-157.0602999,0.000184,2]
[393466750,1762691443575,-162.57231788,0.00018434,2]
[393466751,1762691443585,-1422.0,0.00018474,2]
[393466752,1762691443594,-1725.16456899,0.00018484,2]
[393466753,1762691443603,-1422.0,0.000185,2]
[393466754,1762691443612,-168.0,0.00018548,2]
[393466755,1762691443621,-1422.0,0.00018612,2]
[393466756,1762691443631,-157.0602999,0.0001865,2]
[393466758,1762691443640,-1422.0,0.00018744,2]
[393466760,1762691443649,-1422.0,0.00018746,2]
[393466762,1762691443658,-168.0,0.00018748,2]
[393466764,1762691443668,-247.44,0.00018749,2]
[393466766,1762691443677,-1725.16456899,0.00018751,2]
[393466768,1762691443687,-1422.0,0.00018759,2]
[393466770,1762691443697,-1055.29316497,0.00018805,2]
[393466771,1762691443706,-935.0,0.00018808,2]
[393466772,1762691443715,-1422.0,0.0001881,2]
[393466773,1762691443724,-1000.0,0.00018883,2]
[393466774,1762691443733,-158.57252193,0.000189,2]
[393466775,1762691443743,-157.0602999,0.000189,2]
[393466776,1762691443751,-7157.59,0.00018938,2]
[393466777,1762691443760,-300.0,0.00019,2]
[393466778,1762691443769,-1725.16456899,0.00019014,2]
[393466779,1762691443778,-1063.7382581,0.00019145,2]
[393466780,1762691443787,-22782.11,0.0001915,2]
[393466781,1762691443796,-157.0602999,0.0001915,2]
[393466782,1762691443805,-155.87915395,0.0001924,2]
[393466783,1762691443814,-200.0,0.00019256,2]
[393466784,1762691443823,-247.44,0.00019273,2]
[393466785,1762691443832,-1422.0,0.00019278,2]
[393466786,1762691443841,-1422.0,0.00019282,2]
[393466787,1762691443851,-3031.53,0.00019285,2]
[393466788,1762691443860,-183.83,0.00019301,2]
[393466789,1762691443870,-1725.16456899,0.00019328,2]
[393466790,1762691443879,-478.20968403,0.00019346,2]
[393466791,1762691443888,-168.0,0.00019374,2]
[393466792,1762691443898,-157.0602999,0.000194,2]
[393466793,1762691443907,-166.66,0.00019447,2]
[393466794,1762691443916,-1422.0,0.00019484,2]
[393466795,1762691443925,-1725.16456899,0.00019493,2]
[393466796,1762691443935,-1422.0,0.00019516,2]
[393466797,1762691443944,-157.0602999,0.0001965,2]
[393466798,1762691443953,-587.0,0.00019703,2]
[393466799,1762691443962,-1055.29316497,0.0001971,2]
[393466800,1762691443972,-247.44,0.00019797,2]
[393466801,1762691443981,-1725.16456899,0.00019811,2]
[393466802,1762691443991,-2351.0,0.000199,2]
[393466803,1762691444000,-157.0602999,0.000199,2]
[393466804,1762691444009,-1371.0,0.00019961,2]
[393466805,1762691444018,-5950.52393005,0.0002,2]
[393466806,1762691444087,-709.4203496,0.0002,2]
[393466807,1762691446277,-1024.8,0.0002,2]
[393466808,1762691446381,-863.4835,0.0002,2]
[393466809,1762691446452,-1322.58,0.0002,2]
[393466810,1762691446655,-951.71948099,0.0002,2]
[393466811,1762691446665,-1519.82789773,0.0002,2]
[393466812,1762691446674,-1452.01192522,0.0002,5]
[393466813,1762691446683,-2458.99961079,0.0002,2]
[393466814,1762691446695,-266.37130133,0.0002,2]
[393466845,1762691628623,288.0,0.00026691,120]
[393466846,1762691628809,288.0,0.00029117,120]
[393466895,1762691720445,1000.0,0.00013699,2]
[393466897,1762691858241,161.0,0.000301,120]
[393466898,1762691870764,161.99,0.000301,120]
[393466922,1762692632284,-1725.16456899,0.00016294,2]
[393466923,1762692632293,-250.0,0.00016336,2]
[393466924,1762692632303,-375.64157914,0.00016438,2]
[393466925,1762692632312,-92.61015059,0.00016524,2]
[393466926,1762692632324,-157.38984941,0.00016524,2]
[393466927,1762692632333,-1711.58809682,0.00016547,2]
[393466928,1762692632348,-13.57647217,0.00016547,2]
[393466929,1762692632358,-193.25,0.00016712,2]
[393466930,1762692632367,-127.51183674,0.00016894,2]
[393466931,1762692632401,-1597.65273225,0.00016894,2]
[393466932,1762692632411,-1200.0,0.00017101,2]
[393466933,1762692632420,-1725.16456899,0.00017216,2]
[393466934,1762692632430,-300.0,0.00017398,2]
[393466935,1762692632439,-300.0,0.00017398,2]
[393466936,1762692632449,-610.0,0.00017407,2]
[393466937,1762692632458,-1725.16456899,0.00017425,2]
[393466938,1762692632467,-1725.16456899,0.00017772,2]
[393466939,1762692632477,-250.0,0.00017788,2]
[393466940,1762692632487,-1725.16456899,0.00017871,2]
[393466941,1762692632501,-478.20968403,0.00017989,2]
[393466942,1762692632510,-644.2888923,0.00018,7]
[393466943,1762692632521,-116.0011077,0.00018,7]
[393466944,1762692632532,-1725.16456899,0.00018303,2]
[393466945,1762692632541,-349.95,0.00018308,2]
[393466946,1762692632550,-162.57231788,0.00018434,2]
[393466947,1762692632559,-1725.16456899,0.00018506,2]
[393466948,1762692632570,-500.0,0.00018511,2]
[393466950,1762692632579,-150.0,0.00018555,2]
[393466951,1762692632588,-1018.11265573,0.00018597,7]
[393466952,1762692632598,-1000.0,0.00018629,2]
[393466953,1762692632607,-1725.16456899,0.00018659,2]
[393466954,1762692632616,-550.0,0.00018667,2]
[393466955,1762692632626,-1680.0,0.00018769,2]
[393466956,1762692632635,-300.0,0.00018858,2]
[393466957,1762692632644,-1725.16456899,0.00018921,2]
[393466958,1762692632654,-420.0,0.00018995,2]
[393466959,1762692632664,-950.14627634,0.00018999,2]
[393466961,1762692632674,-500.0,0.00018999,2]
[393466963,1762692632684,-223.76629074,0.00018999,2]
[393466964,1762692632694,-1000.0,0.00019,2]
[393466965,1762692632703,-2999.61543168,0.00019,2]
[393466966,1762692632714,-1460.45530618,0.00019,2]
[393466967,1762692632726,-977.3327285,0.00019,2]
[393466968,1762692632759,-143.39263364,0.00019,2]
[393466970,1762692632768,-574.59897122,0.00019,2]
[393466972,1762692632780,-2430.63083125,0.00019,2]
[393466983,1762692638286,-3331.54310291,0.00019,2]
[393466984,1762692638298,-1035.66529462,0.00019,2]
[393466985,1762692638308,-2500.0,0.00019,2]
[393466986,1762692638319,-9994.2663,0.00019,2]
[393466987,1762692638328,-951.2637,0.00019,2]
[393466988,1762692638338,-898.9748724,0.00019025,2]
[393466989,1762692638348,-2795.30680727,0.00019044,2]
[393466990,1762692638360,-5471.71817939,0.00019044,2]
[393466991,1762692638372,-409.4016062,0.00019044,2]
[393466992,1762692638384,-337.1949623,0.00019044,2]
[393466995,1762692638420,-553.50475097,0.00019044,2]
[393466997,1762692638432,-639.124615,0.00019044,2]
[393467008,1762692640262,-5556.0317327,0.00019044,2]
[393467009,1762692640274,-5994.95987997,0.00019044,2]
[393467010,1762692640583,-209.4674662,0.00019044,2]
[393467011,1762692640592,-158.44453773,0.00019045,2]
[393467012,1762692640602,-344.50359387,0.00019073,2]
[393467015,1762692640667,-155.49640613,0.00019073,2]
[393467016,1762692640678,-408.19969387,0.00019073,2]
[393467121,1762692645060,-93.30755412,0.00019073,2]
[393467122,1762692645071,-501.18079556,0.00019073,2]
[393467123,1762692645080,-500.0,0.00019073,2]
[393467124,1762692645091,-446.85284075,0.00019099,2]
[393467125,1762692645100,-500.0,0.00019099,2]
[393467126,1762692645110,-420000.0,0.000191,2]
[393467127,1762692645120,-8158.9396,0.00019145,2]
[393467128,1762692645130,-504.6181,0.00019151,2]
[393467129,1762692645140,-500.0,0.00019177,2]
[393467130,1762692645149,-3372.45,0.00019178,2]
[393467131,1762692645159,-228.25,0.00019194,2]
[393467132,1762692645168,-2000.0,0.000192,2]
[393467133,1762692645177,-1725.16456899,0.00019227,2]
[393467134,1762692645186,-299.33483307,0.00019244,2]
[393467135,1762692645195,-158.25209266,0.00019244,2]
[393467136,1762692645204,-197.52622172,0.00019244,2]
[393467137,1762692645213,-198161.46608752,0.00019245,2]
[393467138,1762692645223,-65819.61435626,0.00019245,2]
[393467139,1762692645295,-21794.89564374,0.00019245,2]
[393467140,1762692645305,-214.19015976,0.00019267,2]
[393467141,1762692645315,-500.0,0.00019273,2]
[393467143,1762692645325,-502.0082202,0.00019273,2]
[393467145,1762692645334,-500.43798443,0.00019273,2]
[393467147,1762692645343,-500.0,0.00019273,2]
[393467149,1762692645356,-500.0,0.00019273,2]
[393467151,1762692645365,-171.69651617,0.00019273,2]
[393467153,1762692645375,-500.0,0.00019273,2]
[393467155,1762692645384,-1000.0,0.00019327,2]
[393467156,1762692645394,-150.99,0.00019339,2]
[393467157,1762692645404,-288.0,0.00019412,2]
[393467158,1762692645415,-214.19015976,0.00019551,2]
[393467159,1762692645424,-502.0,0.00019562,2]
[393467160,1762692645433,-1725.16456899,0.00019683,2]
[393467161,1762692645443,-500.0,0.00019699,2]
[393467162,1762692645453,-1000.0,0.0001971,2]
[393467163,1762692645463,-5000.0,0.0001971,2]
[393467164,1762692645472,-160.0,0.000198,2]
[393467165,1762692645482,-160.0,0.000198,2]
[393467166,1762692645495,-160.0,0.000198,2]
[393467167,1762692645504,-500.0,0.00019809,2]
[393467168,1762692645513,-109398.33129067,0.0001981,2]
[393467169,1762692645523,-1725.16456901,0.0001984,2]
[393467170,1762692645534,-214.19015977,0.00019912,2]
[393467171,1762692645543,-633.26693698,0.0001995,2]
[393467172,1762692645553,-500.0,0.0001995,2]
[393467173,1762692645562,-500.0,0.0001995,2]
[393467174,1762692645573,-505.15717151,0.00019973,2]
[393467175,1762692645582,-500.0,0.00019973,2]
[393467176,1762692645592,-675.1654159,0.0001998,2]
[393467177,1762692645601,-22641.99975342,0.0002,2]
[393467178,1762692645611,-57593.22134348,0.0002,5]
[393467179,1762692645622,-8300.0,0.0002,4]
[393467180,1762692645632,-3950.0,0.0002,2]
[393467181,1762692645642,-7226.64036279,0.0002,2]
[393467182,1762692645652,-1283.33163411,0.0002,2]
[393467183,1762692645662,-7311.58635946,0.0002,2]
[393467184,1762692645672,-2172.02838569,0.0002,3]
[393467185,1762692645681,-10165.86502198,0.0002,2]
[393467186,1762692645691,-1035.85294866,0.0002,2]
[393467187,1762692645700,-2838.66526332,0.0002,2]
[393467188,1762692645710,-8733.23470703,0.0002,2]
[393467189,1762692645719,-359.1,0.0002,2]
[393467190,1762692645729,-827.0,0.0002,2]
[393467191,1762692645738,-2744.57328716,0.0002,3]
[393467192,1762692645748,-3759.21622,0.0002,2]
[393467193,1762692645757,-827.0,0.0002,2]
[393467194,1762692645766,-827.0,0.0002,2]
[393467195,1762692645775,-827.0,0.0002,2]
[393467196,1762692645785,-9009.50151639,0.0002001,2]
[393467197,1762692645795,-1000.0,0.00020026,2]
[393467198,1762692645804,-166.66,0.00020089,2]
[393467199,1762692645813,-1000.0,0.00020187,2]
[393467200,1762692645823,-300.0,0.00020228,2]
[393467201,1762692645834,-228.25,0.00020261,2]
[393467202,1762692645844,-359.1,0.00020274,2]
[393467203,1762692645854,-247.44,0.00020321,2]
[393467204,1762692645864,-502.12377643,0.00020498,2]
[393467205,1762692645873,-847.38225097,0.00020498,2]
[393467206,1762692645883,-300.92372767,0.00020501,2]
[393467207,1762692645894,-1000.0,0.00020521,2]
[393467208,1762692645905,-21315.44,0.00020548,2]
[393467209,1762692645916,-359.1,0.00020548,2]
[393467210,1762692645926,-898.97487235,0.00020598,2]
[393467211,1762692645936,-2351.0,0.00020599,2]
[393467212,1762692645947,-1055.29316497,0.00020615,2]
[393467213,1762692645958,-378.98053424,0.00020699,5]
[393467214,1762692645968,-22458.31516154,0.000207,2]
[393467215,1762692645978,-1000.0,0.00020725,2]
[393467216,1762692645988,-166.66,0.00020731,2]
[393467217,1762692645998,-587.0,0.00020738,2]
[393467218,1762692646007,-156.203306,0.0002075,2]
[393467219,1762692646016,-897.16032,0.0002075,2]
[393467220,1762692646026,-445.043955,0.0002075,2]
[393467221,1762692646035,-1033.874053,0.0002075,2]
[393467222,1762692646044,-2751.0,0.00020802,2]
[393467223,1762692646054,-359.1,0.00020822,2]
[393467224,1762692646064,-500.0,0.00020999,2]
[393467225,1762692646074,-350.0,0.00021,2]
[393467226,1762692646084,-41430.40243341,0.00021,2]
[393467227,1762692646093,-1182.31615962,0.00021,2]
[393467228,1762692646103,-195.15798385,0.00021,2]
[393467229,1762692646112,-3098.0,0.00021029,2]
[393467230,1762692646121,-576.362,0.00021029,2]
[393467231,1762692646131,-3544.534,0.00021029,2]
[393467232,1762692646140,-608.0,0.00021029,2]
[393467233,1762692646149,-1316.0,0.00021029,2]
[393467234,1762692646159,-820.0,0.00021029,2]
[393467235,1762692646168,-1602.924,0.00021029,2]
[393467236,1762692646178,-1189.0,0.00021029,2]
[393467237,1762692646187,-1273.0,0.00021029,2]
[393467238,1762692646197,-813.0,0.00021029,2]
[393467239,1762692646206,-6661.0,0.00021029,2]
[393467240,1762692646215,-2142.0,0.00021029,2]
[393467241,1762692646224,-6478.0,0.00021029,2]
[393467242,1762692646234,-559.0,0.00021029,2]
[393467243,1762692646243,-12399.31,0.00021068,2]
[393467245,1762692646254,-598.56150961,0.00021068,2]
[393467247,1762692646263,-359.12360344,0.00021096,2]
[393467249,1762692646272,-1000.0,0.00021243,2]
[393467250,1762692646282,-2746.359,0.00021258,2]
[393467251,1762692646292,-167.197,0.00021258,2]
[393467252,1762692646302,-228.25,0.00021327,2]
[393467253,1762692646311,-6316.24,0.0002137,2]
[393467254,1762692646321,-166.66,0.00021373,2]
[393467255,1762692646330,-773.0,0.000214,2]
[393467256,1762692646339,-447.0,0.000214,2]
[393467257,1762692646349,-1000.0,0.00021423,2]
[393467258,1762692646359,-57446.01984656,0.000215,2]
[393467259,1762692646368,-220.0909528,0.000215,2]
[393467260,1762692646377,-1055.29316497,0.00021519,2]
[393467261,1762692646387,-500.0,0.00021534,2]
[393467262,1762692646396,-250.0,0.00021543,2]
[393467263,1762692646405,-153.81,0.00021565,2]
[393467264,1762692646415,-617.93,0.00021804,2]
[393467265,1762692646424,-288.0,0.00021838,2]
[393467266,1762692646434,-5000.0,0.00021918,2]
[393467267,1762692646443,-500.0,0.00021973,2]
[393467268,1762692646453,-151.0,0.00021997,2]
[393467269,1762692646463,-500.0,0.00021999,2]
[393467270,1762692646472,-4144.65379316,0.00022,2]
[393467271,1762692646481,-246.56873455,0.00022,3]
[393467272,1762692646493,-161.0,0.00022,3]
[393467273,1762692646503,-161.0,0.00022,3]
[393467274,1762692646513,-247640.88983916,0.00022,4]
[393467275,1762692646522,-4108.59202886,0.00022,2]
[393467276,1762692646531,-16723.59,0.00022,7]
[393467277,1762692646543,-788.30218358,0.00022,7]
[393467278,1762692646553,-160.97,0.00022,2]
[393467279,1762692646562,-3759.21623,0.00022,2]
[393467280,1762692646573,-166.66,0.00022015,2]
[393467281,1762692646582,-489.91636949,0.000221,2]
[393467282,1762692646591,-238.05488233,0.0002211,2]
[393467283,1762692646601,-898.97487235,0.00022171,2]
[393467284,1762692646610,-584.87,0.00022312,2]
[393467285,1762692646620,-202.3893876,0.0002232,2]
[393467286,1762692646629,-364.30089769,0.0002232,2]
[393467287,1762692646638,-646.99839429,0.0002232,2]
[393467288,1762692646647,-228.25,0.00022393,2]
[393467289,1762692646656,-191455.08488742,0.00022412,2]
[393467290,1762692646673,-71423.07511258,0.00022412,2]
[393467291,1762692646683,-1055.29316497,0.00022424,2]
[393467292,1762692646692,-332.94017181,0.0002243,2]
[393467293,1762692646701,-150.0,0.00022473,2]
[393467294,1762692646711,-27128.71155064,0.000225,2]
[393467296,1762692647364,-8038.69413908,0.000225,2]
[393467297,1762692647374,-1000.0,0.00022521,2]
[393467298,1762692647383,-3292.0,0.00022608,2]
[393467299,1762692647392,-823.0,0.00022641,2]
[393467300,1762692647402,-166.66,0.00022656,2]
[393467301,1762692647411,-518.07823043,0.0002271,2]
[393467302,1762692647420,-4319.0,0.00022767,2]
[393467303,1762692647429,-19206.34413281,0.000229,2]
[393467304,1762692647438,-2000.0,0.000229,2]
[393467305,1762692647447,-183.84,0.00022996,2]
[393467306,1762692647456,-160.0,0.00023,4]
[393467307,1762692647466,-400.0,0.00023,2]
[393467308,1762692647475,-628.37975426,0.00023,7]
[393467309,1762692647485,-435.60836925,0.00023,2]
[393467310,1762692647497,-997.88219368,0.00023,2]
[393467311,1762692647506,-250.0,0.00023021,2]
[393467312,1762692647515,-162.57231788,0.00023042,2]
[393467313,1762692647524,-335.14732361,0.00023068,2]
[393467314,1762692647533,-16489.88,0.00023094,2]
[393467315,1762692647543,-2560.76924219,0.000231,2]
[393467316,1762692647552,-200.0,0.000231,2]
[393467317,1762692647562,-51668.18922415,0.000232,2]
[393467318,1762692647572,-143260.0,0.000233,2]
[393467319,1762692647582,-1055.29316497,0.00023329,2]
[393467320,1762692647591,-151.0,0.00023426,7]
[393467321,1762692647600,-87724.6536393,0.00023429,2]
[393467322,1762692647611,-311.95840197,0.00023429,2]
[393467323,1762692721855,150.0,0.00022716,120]
[393467325,1762692976703,-250.0,0.00017,2]
[393467326,1762692976727,-250.0,0.000175,2]
[393467327,1762692976750,-684.26,0.00018,7]
[393467328,1762693023285,-250.0,0.00018247,2]
[393467329,1762693023306,-162.57231788,0.00018482,2]
[393467330,1762693023327,-250.0,0.000187,2]
[393467331,1762693023348,-158.44453773,0.00018866,2]
[393467332,1762693023370,-561.85929528,0.00018889,2]
[393467333,1762693023391,-300.0,0.00018899,2]
[393467334,1762693023413,-1200.0,0.00018899,2]
[393467335,1762693023435,-558.42948853,0.00018899,2]
[393467336,1762693023459,-3558.69436058,0.000189,2]
[393467337,1762693106265,191.10971376,0.000301,120]
[393467338,1762693284094,-615.83,0.00018,7]
[393467339,1762693284119,-491.62688337,0.000188,2]
[393467340,1762693284143,-356.0,0.000188,2]
[393467341,1762693284172,-1416.10252666,0.00018881,2]
[393467342,1762693284199,-300.0,0.00018899,2]
[393467343,1762693284224,-1200.0,0.00018899,2]
[393467344,1762693284249,-300.0,0.00018899,2]
[393467345,1762693284277,-21650.44058997,0.000189,2]
[393467350,1762693607428,200.44,9.664e-05,2]
[393467357,1762693831369,-322.0,0.00017441,2]
[393467358,1762693831379,-195.0,0.00017441,2]
[393467359,1762693831388,-370.06669,0.00017441,2]
[393467360,1762693831424,-274.73006917,0.00017441,2]
[393467361,1762693831436,-497.9975,0.00017441,2]
[393467362,1762693831448,-400.68481409,0.00017441,2]
[393467363,1762693831648,-592.61092674,0.00017441,2]
[393467364,1762693831664,-195.0,0.00017511,2]
[393467365,1762693831680,-164.9851719,0.00017581,2]
[393467366,1762693831696,-250.0,0.00017721,2]
[393467368,1762693831712,-195.0,0.00017775,2]
[393467370,1762693831725,-554.25,0.00018,7]
[393467371,1762693831738,-250.0,0.0001824,2]
[393467372,1762693831751,-300.0,0.00018499,2]
[393467373,1762693831767,-300.0,0.00018499,2]
[393467374,1762693831781,-300.0,0.00018499,2]
[393467375,1762693831795,-990.67612749,0.00018499,2]
[393467378,1762693837332,-209.32387251,0.00018499,2]
[393467379,1762693837343,-77.39512749,0.000185,7]
[393467380,1762693837354,-4596.19543924,0.000185,7]
[393467381,1762693837510,-818.775,0.000185,7]
[393467384,1762693837569,-540.51117255,0.000185,7]
[393467402,1762693839463,-1286.75478,0.000185,7]
[393467403,1762693839815,-3596.81,0.000185,7]
[393467404,1762693839827,-17420.51115696,0.000185,7]
[393467405,1762693839869,-4988.457,0.000185,7]
[393467408,1762693839960,-463.60497162,0.000185,7]
[393467410,1762693839974,-6064.59957958,0.000185,7]
[393467413,1762693839986,-318.58362674,0.000185,7]
[393467486,1762693843067,-480.0,0.000185,7]
[393467532,1762693845823,-270.48750473,0.00018,7]
[393467534,1762693845843,-228.33249527,0.00018,7]